lending/lending_fUSD_20250316
["ID","MTS","AMOUNT","RATE_DAILY","PERIOD"]
[356264985,1742160641942,-15092.12043145,0.000304,120]
[356264986,1742160641951,-5355.1827221,0.000304,2]
[356264987,1742160641962,-1000.0,0.000304,30]
[356264988,1742160641972,-125001.26945466,0.000304,30]
[356264989,1742160641987,-1792.4000004,0.000304,30]
[356264990,1742160642004,-405.555575,0.000304,30]
[356264991,1742160642016,-33319.9778123,0.000304,30]
[356264992,1742160642027,-21719.58281239,0.000304,30]
[356264993,1742160642039,-2296.54540498,0.000304,30]
[356264994,1742160642050,-782.34095203,0.000304,30]
[356264995,1742160642062,-1044.85200005,0.000304,30]
[356265013,1742160643299,-881.0,0.000304,30]
[356265025,1742160643360,-11150.08230562,0.000304,30]
[356265029,1742160644787,-16877.44626585,0.000304,30]
[356265030,1742160646341,-313.46575358,0.000304,30]
[356265031,1742160646571,-2793.7,0.000304,30]
[356265035,1742160683995,-150.03109969,9.9e-05,2]
[356265043,1742161759775,-300.0,9.9e-05,2]
[356265044,1742161760426,-162.97,9.9e-05,2]
[356265045,1742161791478,-857.41558665,9.9e-05,2]
[356265067,1742161831574,-13.88151366,9.9e-05,2]
[356265068,1742161831588,-150.0,0.00010024,2]
[356265069,1742161831599,-150.0,0.0001089,2]
[356265070,1742161831609,-150.0,0.00012597,2]
[356265071,1742161831619,-250.0,0.00019,2]
[356265072,1742161831629,-500.0,0.00020822,2]
[356265073,1742161831638,-300.0,0.00021,2]
[356265074,1742161831647,-150.0,0.0002189,2]
[356265075,1742161831657,-150.0,0.00021917,2]
[356265076,1742161831667,-350.0,0.00023,2]
[356265077,1742161831678,-150.0,0.00023287,2]
[356265078,1742161831688,-500.0,0.00024301,2]
[356265079,1742161831698,-150.0,0.00024657,2]
[356265080,1742161831708,-300.0,0.000248,2]
[356265081,1742161831718,-1398.91744766,0.00024801,2]
[356265082,1742161831730,-310.10819482,0.00024801,2]
[356265083,1742161831766,-1877.84953695,0.00024801,2]
[356265102,1742161837322,-5706.13483158,0.00024801,2]
[356265103,1742161837333,-8221.31409602,0.00024801,2]
[356265104,1742161837345,-1109.2,0.00024801,2]
[356265105,1742161837445,-1055.390328,0.00024801,2]
[356265106,1742161837457,-3979.7801504,0.00024801,2]
[356265107,1742161837468,-92.38961114,0.00024801,2]
[356265108,1742161837478,-400.0,0.00025,2]
[356265109,1742161837487,-150.0,0.00026027,2]
[356265110,1742161837496,-834.94,0.00026834,2]
[356265111,1742161837506,-164.89,0.00026849,2]
[356265112,1742161837515,-420.0,0.00026872,2]
[356265113,1742161837529,-200.68447076,0.000269,4]
[356265114,1742161837539,-450.0,0.00027,2]
[356265115,1742161837549,-150.0,0.00027397,2]
[356265116,1742161837558,-200.68447059,0.000281,5]
[356265117,1742161837568,-150.0,0.00028391,2]
[356265118,1742161837578,-5090.80489421,0.00028391,2]
[356265119,1742161837589,-2630.17510579,0.00028391,2]
[356265120,1742161837600,-2000.0,0.00028502,120]
[356265121,1742161837610,-150.0,0.00028573,7]
[356265122,1742161837619,-250.0,0.00028696,2]
[356265123,1742161837628,-150.0,0.00028767,2]
[356265124,1742161837637,-535.96833304,0.00028796,2]
[356265125,1742161837649,-464.03166696,0.00028796,2]
[356265126,1742161837658,-500.0,0.00029,2]
[356265127,1742161837667,-155.89039927,0.00029,2]
[356265128,1742161837679,-80.10960073,0.00029,2]
[356265129,1742161837688,-834.94,0.00029098,2]
[356265130,1742161837697,-587.0,0.00029117,2]
[356265131,1742161837707,-1335.33,0.00029164,2]
[356265132,1742161837715,-176.563,0.00029164,22]
[356265133,1742161837725,-1497.974,0.00029164,22]
[356265134,1742161837734,-357.47466452,0.00029241,2]
[356265135,1742161839809,-977.85533548,0.00029241,2]
[356265136,1742161839819,-200.68447059,0.000293,5]
[356265137,1742161839828,-1335.33,0.00029317,2]
[356265138,1742161839838,-1335.33,0.00029394,2]
[356265139,1742161839847,-1335.33,0.00029471,2]
[356265140,1742161839856,-256.3006417,0.00029496,4]
[356265141,1742161839865,-1335.33,0.00029548,2]
[356265142,1742161839874,-1335.33,0.00029624,2]
[356265143,1742161839883,-166.66,0.0002966,2]
[356265144,1742161839892,-1335.33,0.00029701,2]
[356265145,1742161839901,-1335.33,0.00029778,2]
[356265146,1742161839911,-1335.33,0.00029855,2]
[356265147,1742161839920,-1335.33,0.00029931,2]
[356265148,1742161839929,-1335.33,0.00030008,2]
[356265149,1742161839938,-236.0,0.0003005,2]
[356265150,1742161839947,-500.0,0.00030073,5]
[356265151,1742161839957,-500.0,0.00030073,5]
[356265152,1742161839965,-161.41476575,0.00030073,5]
[356265153,1742161839974,-1335.33,0.00030085,2]
[356265154,1742161839983,-23575.13041139,0.000301,2]
[356265155,1742161839992,-150.0,0.00030131,2]
[356265156,1742161840001,-150.0,0.00030132,2]
[356265157,1742161840010,-150.0,0.00030134,2]
[356265158,1742161840019,-150.0,0.00030136,2]
[356265159,1742161840028,-150.0,0.00030137,2]
[356265160,1742161840038,-150.0,0.00030143,2]
[356265161,1742161840046,-150.0,0.00030146,2]
[356265162,1742161840055,-150.0,0.00030153,2]
[356265163,1742161840064,-1335.33,0.00030161,2]
[356265164,1742161840073,-150.0,0.00030162,2]
[356265165,1742161840082,-150.0,0.00030164,2]
[356265166,1742161840091,-150.0,0.00030167,2]
[356265167,1742161840099,-150.0,0.00030169,2]
[356265168,1742161840108,-150.0,0.00030169,2]
[356265169,1742161840118,-150.0,0.00030171,2]
[356265170,1742161840127,-150.0,0.00030171,2]
[356265171,1742161840136,-150.0,0.00030174,2]
[356265172,1742161840145,-150.0,0.00030178,2]
[356265173,1742161840154,-150.0,0.0003018,2]
[356265174,1742161840163,-150.0,0.00030184,2]
[356265175,1742161840172,-150.0,0.00030189,2]
[356265176,1742161840182,-150.0,0.00030195,2]
[356265177,1742161840191,-150.0,0.00030197,2]
[356265178,1742161840200,-150.0,0.00030197,2]
[356265179,1742161840210,-150.0,0.000302,2]
[356265180,1742161840219,-150.0,0.00030202,2]
[356265181,1742161840229,-150.0,0.00030203,2]
[356265182,1742161840238,-150.0,0.00030206,2]
[356265183,1742161840248,-150.0,0.00030207,2]
[356265184,1742161840258,-150.0,0.0003021,2]
[356265185,1742161840267,-150.0,0.00030212,2]
[356265186,1742161840276,-150.0,0.00030215,2]
[356265187,1742161840286,-150.0,0.00030218,2]
[356265188,1742161840295,-150.0,0.00030219,2]
[356265189,1742161840304,-150.0,0.00030219,2]
[356265190,1742161840313,-150.0,0.0003022,2]
[356265191,1742161840323,-150.0,0.00030221,2]
[356265192,1742161840333,-150.0,0.00030224,2]
[356265193,1742161840342,-150.0,0.00030226,2]
[356265194,1742161840351,-150.0,0.0003023,2]
[356265195,1742161840361,-150.0,0.00030233,2]
[356265196,1742161840370,-150.0,0.00030234,2]
[356265197,1742161840379,-150.0,0.00030235,2]
[356265198,1742161840388,-1335.33,0.00030238,2]
[356265199,1742161840397,-150.0,0.00030242,2]
[356265200,1742161840406,-1425.0,0.00030247,5]
[356265201,1742161840415,-150.0,0.00030249,2]
[356265202,1742161840424,-150.0,0.0003025,2]
[356265203,1742161840433,-150.0,0.00030253,2]
[356265204,1742161840442,-150.0,0.00030255,2]
[356265205,1742161840451,-150.0,0.00030257,2]
[356265206,1742161840460,-150.0,0.00030263,2]
[356265207,1742161840471,-150.0,0.0003027,2]
[356265208,1742161840480,-1000.0,0.0003027,2]
[356265209,1742161840489,-445.30437391,0.00030273,5]
[356265210,1742161840499,-150.0,0.00030273,2]
[356265211,1742161840508,-150.0,0.0003028,2]
[356265212,1742161840518,-161.81672344,0.00030282,2]
[356265213,1742161840530,-150.0,0.00030282,2]
[356265214,1742161840540,-150.0,0.00030283,2]
[356265215,1742161840549,-150.0,0.00030284,2]
[356265216,1742161840559,-150.0,0.00030286,2]
[356265217,1742161840570,-150.0,0.00030286,2]
[356265218,1742161840580,-150.0,0.00030288,2]
[356265219,1742161840589,-150.0,0.00030289,2]
[356265220,1742161840600,-150.0,0.0003029,2]
[356265221,1742161840610,-150.0,0.00030291,2]
[356265222,1742161840620,-150.0,0.00030291,2]
[356265223,1742161840630,-150.0,0.00030293,2]
[356265224,1742161840640,-150.0,0.00030295,2]
[356265225,1742161840650,-1000.0,0.00030296,2]
[356265226,1742161840660,-150.0,0.00030297,2]
[356265227,1742161840670,-150.0,0.00030298,2]
[356265228,1742161840680,-1000.0,0.00030299,2]
[356265229,1742161840689,-2500.0,0.00030299,2]
[356265230,1742161840699,-486.55308279,0.00030299,2]
[356265231,1742161840709,-535.32577691,0.00030299,2]
[356265232,1742161840719,-14839.7517609,0.00030299,2]
[356265233,1742161840728,-150.0,0.00030299,2]
[356265234,1742161840738,-807.23234265,0.00030299,2]
[356265235,1742161840748,-339.98616053,0.00030299,2]
[356265236,1742161840757,-8762.9403,0.000303,2]
[356265237,1742161840767,-5861.2409,0.000303,2]
[356265238,1742161840777,-1000.0,0.000303,2]
[356265239,1742161840787,-150.0,0.00030305,2]
[356265240,1742161840796,-150.0,0.00030307,2]
[356265241,1742161840806,-150.0,0.00030312,2]
[356265242,1742161840816,-1335.33,0.00030315,2]
[356265243,1742161840826,-150.0,0.00030317,2]
[356265244,1742161840836,-150.0,0.00030318,2]
[356265245,1742161840846,-150.0,0.0003032,2]
[356265246,1742161840856,-390.69288899,0.0003032,2]
[356265247,1742161840867,-150.0,0.00030321,2]
[356265248,1742161840876,-150.0,0.00030325,2]
[356265249,1742161840886,-150.0,0.00030325,2]
[356265251,1742161840896,-236.6398052,0.00030331,2]
[356265253,1742161840906,-150.0,0.00030336,2]
[356265254,1742161840915,-1000.0,0.00030341,2]
[356265255,1742161840924,-150.0,0.00030343,2]
[356265256,1742161840934,-150.0,0.00030344,2]
[356265257,1742161840943,-150.0,0.00030344,2]
[356265258,1742161840953,-150.0,0.00030345,2]
[356265259,1742161840962,-150.0,0.00030345,2]
[356265260,1742161840971,-150.0,0.00030347,2]
[356265261,1742161840981,-150.0,0.0003035,2]
[356265262,1742161840991,-150.0,0.00030352,2]
[356265263,1742161841000,-150.0,0.00030358,2]
[356265264,1742161841010,-150.0,0.00030359,2]
[356265265,1742161841019,-150.0,0.00030363,2]
[356265266,1742161841029,-150.0,0.00030364,2]
[356265267,1742161841039,-150.0,0.00030365,2]
[356265268,1742161841048,-150.0,0.00030371,2]
[356265269,1742161841058,-150.0,0.00030374,2]
[356265270,1742161841067,-150.0,0.00030374,2]
[356265271,1742161841077,-150.0,0.00030378,2]
[356265272,1742161841087,-150.0,0.00030378,2]
[356265273,1742161841096,-150.0,0.00030379,2]
[356265274,1742161841106,-150.0,0.00030379,2]
[356265275,1742161841115,-150.0,0.0003038,2]
[356265276,1742161841125,-150.0,0.0003038,2]
[356265277,1742161841134,-1000.0,0.0003038,2]
[356265278,1742161841144,-150.0,0.00030388,2]
[356265279,1742161841153,-152.05,0.00030389,2]
[356265280,1742161841162,-152.05,0.00030389,2]
[356265281,1742161841171,-152.05,0.00030389,2]
[356265282,1742161841181,-152.05,0.00030389,2]
[356265283,1742161841190,-152.05,0.00030389,2]
[356265284,1742161841199,-152.05,0.00030389,2]
[356265285,1742161841209,-152.05,0.00030389,2]
[356265286,1742161841375,-152.05,0.00030389,2]
[356265287,1742161841385,-152.05,0.00030389,2]
[356265288,1742161841394,-150.0,0.00030389,2]
[356265289,1742161841404,-150.0,0.00030389,2]
[356265290,1742161841413,-150.0,0.00030391,2]
[356265291,1742161841422,-150.0,0.00030391,2]
[356265292,1742161841432,-1335.33,0.00030392,2]
[356265293,1742161841441,-150.0,0.00030393,2]
[356265294,1742161841450,-150.0,0.00030395,2]
[356265295,1742161841459,-150.0,0.00030397,2]
[356265296,1742161841469,-785.93,0.00030398,2]
[356265297,1742161841479,-1000.0,0.00030398,2]
[356265298,1742161841488,-2226485.03885994,0.00030399,30]
[356265318,1742161842569,-150.0,0.00030133,2]
[356265319,1742161842579,-150.0,0.00030136,2]
[356265320,1742161842589,-69.12270208,0.00030136,2]
[356265321,1742161842602,-80.87729792,0.00030136,2]
[356265322,1742161842612,-150.0,0.00030138,2]
[356265323,1742161842622,-150.0,0.00030148,2]
[356265324,1742161842631,-150.0,0.00030148,2]
[356265325,1742161842641,-150.0,0.00030159,2]
[356265326,1742161842650,-150.0,0.0003016,2]
[356265327,1742161842660,-150.0,0.00030167,2]
[356265328,1742161842669,-150.0,0.00030168,2]
[356265329,1742161842679,-150.0,0.00030194,2]
[356265330,1742161842688,-150.0,0.00030203,2]
[356265331,1742161842698,-150.0,0.00030204,2]
[356265332,1742161842707,-150.0,0.00030206,2]
[356265333,1742161842717,-150.0,0.00030209,2]
[356265334,1742161842727,-150.0,0.00030215,2]
[356265335,1742161842736,-150.0,0.00030216,2]
[356265336,1742161842746,-150.0,0.0003022,2]
[356265337,1742161842755,-150.0,0.00030223,2]
[356265338,1742161842765,-150.0,0.00030236,2]
[356265339,1742161842775,-150.0,0.00030241,2]
[356265340,1742161842784,-150.0,0.00030245,2]
[356265341,1742161842793,-150.0,0.00030252,2]
[356265342,1742161842803,-150.0,0.00030255,2]
[356265343,1742161842813,-150.0,0.00030262,2]
[356265345,1742161842822,-150.0,0.00030273,2]
[356265347,1742161842831,-150.0,0.00030286,2]
[356265349,1742161842841,-150.0,0.00030286,2]
[356265350,1742161842851,-150.0,0.00030286,2]
[356265351,1742161842860,-150.0,0.00030289,2]
[356265352,1742161842870,-150.0,0.00030298,2]
[356265353,1742161842880,-150.0,0.00030301,2]
[356265354,1742161842889,-150.0,0.00030301,2]
[356265355,1742161842899,-150.0,0.00030305,2]
[356265356,1742161842908,-150.0,0.00030309,2]
[356265357,1742161842917,-75.08186227,0.0003031,2]
[356265358,1742161842929,-74.91813773,0.0003031,2]
[356265360,1742161842939,-150.0,0.0003031,2]
[356265362,1742161842948,-150.0,0.00030312,2]
[356265364,1742161842958,-150.0,0.00030315,2]
[356265366,1742161842968,-150.0,0.00030317,2]
[356265368,1742161842977,-150.0,0.00030324,2]
[356265370,1742161842986,-150.0,0.00030337,2]
[356265372,1742161842996,-150.0,0.00030347,2]
[356265374,1742161843006,-150.0,0.00030354,2]
[356265375,1742161843016,-150.0,0.00030355,2]
[356265377,1742161843025,-84.1720789,0.00030361,2]
[356265378,1742161844491,-65.8279211,0.00030361,2]
[356265379,1742161844501,-150.0,0.00030363,2]
[356265380,1742161844511,-123.65817824,0.00030372,2]
[356265383,1742161845438,-26.34182176,0.00030372,2]
[356265384,1742161845448,-150.0,0.00030374,2]
[356265385,1742161845457,-150.0,0.00030386,2]
[356265386,1742161845468,-150.0,0.00030391,2]
[356265387,1742161845477,-150.0,0.00030397,2]
[356265388,1742161845486,-150.0,0.00030398,2]
[356265389,1742161845495,-6428.23427892,0.00030399,30]
[356265390,1742161845559,-267.95385928,0.00030399,30]
[356265391,1742161845572,-365.36453044,0.00030399,30]
[356265392,1742161845681,-693.68258874,0.00030399,30]
[356265470,1742163031729,-250.0,0.00019,2]
[356265471,1742163031739,-150.0,0.0001995,2]
[356265472,1742163031749,-150.0,0.000209,2]
[356265473,1742163031759,-150.0,0.00022099,2]
[356265474,1742163031768,-3798.0,0.000234,5]
[356265475,1742163031778,-500.0,0.000255,2]
[356265476,1742163031787,-367.23117525,0.000255,2]
[356265477,1742163031798,-420.0,0.00025863,2]
[356265478,1742163031808,-151.29,0.00026849,2]
[356265479,1742163031817,-224.09259839,0.000269,4]
[356265480,1742163031827,-772.76,0.00027383,2]
[356265481,1742163031837,-224.09259822,0.00027728,4]
[356265482,1742163031846,-224.09259822,0.00028555,5]
[356265483,1742163031857,-2279.9,0.00028796,2]
[356265484,1742163031866,-250.0,0.00029013,2]
[356265485,1742163031877,-175.14,0.00029028,2]
[356265486,1742163031887,-500.0,0.00029046,3]
[356265487,1742163031898,-1000.0,0.00029086,2]
[356265488,1742163031908,-156.73,0.00029163,2]
[356265489,1742163031918,-152.33,0.00029163,120]
[356265490,1742163031929,-150.0,0.00029226,7]
[356265491,1742163031938,-156.73,0.00029267,2]
[356265492,1742163031950,-150.0,0.00029291,2]
[356265493,1742163031959,-200.0,0.00029301,2]
[356265494,1742163031969,-2093.12,0.00029305,2]
[356265495,1742163031979,-168.23,0.00029363,30]
[356265496,1742163031989,-156.73,0.00029371,2]
[356265497,1742163031999,-224.09259822,0.00029383,5]
[356265498,1742163032009,-156.73,0.00029475,2]
[356265499,1742163032019,-192.2254813,0.00029496,4]
[356265500,1742163032029,-156.73,0.00029579,2]
[356265501,1742163032039,-233.1387084,0.00029647,2]
[356265502,1742163032052,-539.6212916,0.00029647,2]
[356265503,1742163032061,-156.73,0.00029683,2]
[356265504,1742163032071,-156.73,0.00029787,2]
[356265505,1742163032081,-300.38493457,0.00029807,2]
[356265506,1742163032090,-156.73,0.00029892,2]
[356265507,1742163032099,-156.73,0.00029996,2]
[356265508,1742163032108,-250.0,0.0003,7]
[356265509,1742163032117,-156.73,0.000301,2]
[356265510,1742163032129,-150.0,0.0003013,2]
[356265511,1742163032139,-150.0,0.00030131,2]
[356265512,1742163032148,-150.0,0.00030132,2]
[356265513,1742163032158,-150.0,0.00030134,2]
[356265514,1742163032168,-150.0,0.00030137,2]
[356265515,1742163032177,-150.0,0.00030153,2]
[356265516,1742163032187,-150.0,0.00030158,2]
[356265517,1742163032197,-150.0,0.00030168,2]
[356265518,1742163032207,-150.0,0.00030171,2]
[356265519,1742163032217,-150.0,0.00030193,2]
[356265521,1742163032226,-150.0,0.00030195,2]
[356265523,1742163032236,-150.0,0.00030197,2]
[356265525,1742163032246,-150.0,0.00030198,2]
[356265527,1742163032255,-1669.24339343,0.00030199,2]
[356265529,1742163032266,-330.33,0.00030199,2]
[356265532,1742163032281,-2278.57230657,0.00030199,2]
[356265534,1742163032290,-581.0,0.000302,2]
[356265536,1742163032300,-156.73,0.00030204,2]
[356265538,1742163032310,-150.0,0.00030205,2]
[356265540,1742163032319,-150.0,0.00030206,2]
[356265543,1742163032328,-150.0,0.0003021,2]
[356265546,1742163032337,-224.09259822,0.0003021,5]
[356265548,1742163032346,-285.30317468,0.00030212,2]
[356265550,1742163032355,-150.0,0.00030214,2]
[356265551,1742163032364,-150.0,0.00030215,2]
[356265554,1742163032375,-150.0,0.0003022,2]
[356265556,1742163032384,-150.0,0.00030229,2]
[356265558,1742163032394,-150.0,0.00030246,2]
[356265559,1742163032403,-150.0,0.00030249,2]
[356265561,1742163032413,-150.0,0.0003025,2]
[356265562,1742163032422,-150.0,0.00030252,2]
[356265564,1742163032432,-150.0,0.00030254,2]
[356265565,1742163032441,-150.0,0.00030268,2]
[356265566,1742163032450,-1438.171,0.00030272,25]
[356265567,1742163032459,-164.40440053,0.00030273,5]
[356265568,1742163032469,-160.40670731,0.00030273,5]
[356265569,1742163032478,-501.0441687,0.00030273,5]
[356265570,1742163032487,-160.21177029,0.00030273,5]
[356265571,1742163032498,-151.20438981,0.00030273,2]
[356265572,1742163032508,-503.23579928,0.00030273,5]
[356265573,1742163032518,-150.0,0.00030273,2]
[356265574,1742163032527,-150.0,0.00030283,2]
[356265575,1742163032536,-150.0,0.00030287,2]
[356265576,1742163032546,-150.0,0.00030293,2]
[356265577,1742163032556,-1000.0,0.00030299,2]
[356265578,1742163032565,-31617.4404,0.00030299,2]
[356265579,1742163032575,-4608.9748,0.00030299,2]
[356265580,1742163032585,-9970.8844,0.00030299,2]
[356265581,1742163032594,-4760.2239,0.00030299,2]
[356265582,1742163032603,-9300.8081,0.00030299,2]
[356265583,1742163032613,-10920.9523,0.00030299,2]
[356265584,1742163032622,-1315.86638462,0.00030299,2]
[356265588,1742163037550,-1362.73691538,0.00030299,2]
[356265589,1742163037558,-349.532,0.00030299,2]
[356265590,1742163037566,-150.0,0.00030305,2]
[356265591,1742163037574,-156.73,0.00030308,2]
[356265592,1742163037580,-150.0,0.0003031,2]
[356265593,1742163037587,-1000.0,0.00030312,2]
[356265594,1742163037594,-150.0,0.00030319,2]
[356265595,1742163037601,-150.0,0.00030323,2]
[356265596,1742163037608,-150.0,0.00030327,2]
[356265597,1742163037616,-150.0,0.00030327,2]
[356265598,1742163037623,-150.0,0.00030328,2]
[356265599,1742163037633,-150.0,0.00030336,2]
[356265600,1742163037640,-150.0,0.00030344,2]
[356265601,1742163037646,-150.0,0.00030355,2]
[356265602,1742163037654,-150.0,0.00030361,2]
[356265603,1742163037663,-700.2822556,0.00030363,2]
[356265604,1742163037673,-252.0000001,0.00030363,2]
[356265605,1742163037684,-1062.4557274,0.00030363,2]
[356265606,1742163037701,-12000.0,0.00030363,2]
[356265607,1742163037712,-14657.7913169,0.00030363,2]
[356265608,1742163037722,-500.0,0.00030363,2]
[356265609,1742163037731,-13373.72241608,0.00030363,2]
[356265610,1742163037740,-481.79319921,0.00030363,2]
[356265611,1742163037749,-164.28489191,0.00030363,2]
[356265613,1742163037758,-150.0,0.00030367,2]
[356265615,1742163037767,-150.0,0.00030369,2]
[356265617,1742163037777,-150.0,0.00030373,2]
[356265619,1742163037787,-150.0,0.00030385,2]
[356265621,1742163037797,-150.0,0.00030387,2]
[356265623,1742163037807,-150.0,0.00030398,2]
[356265625,1742163037816,-379.15489,0.00030398,46]
[356265626,1742163037826,-200.0,0.00030399,2]
[356265627,1742163037836,-150.0,0.00030399,2]
[356265628,1742163037845,-167.20471877,0.000304,7]
[356265629,1742163037854,-247.06790445,0.000304,7]
[356265630,1742163037863,-158.0,0.00030406,120]
[356265631,1742163037876,-620.59871429,0.00030406,120]
[356265632,1742163037887,-151.0,0.00030408,2]
[356265633,1742163037896,-1000.0,0.0003041,2]
[356265634,1742163037906,-156.73,0.00030412,2]
[356265635,1742163037915,-14145.6783777,0.00030432,2]
[356265636,1742163037925,-3110.897013,0.00030432,2]
[356265637,1742163037934,-152.05,0.00030453,2]
[356265638,1742163037944,-181.58863853,0.00030462,2]
[356265639,1742163037954,-54871.92257398,0.00030463,30]
[356265640,1742163037968,-845.11533,0.00030463,30]
[356265641,1742163037979,-16948.94577296,0.00030463,30]
[356265643,1742163037991,-3409.13997223,0.00030463,30]
[356265645,1742163038003,-5721.27818791,0.00030463,30]
[356265648,1742163038015,-665.41197804,0.00030463,30]
[356265671,1742163039825,-16777.06878541,0.00030463,30]
[356265672,1742163039858,-436.7821337,0.00030463,30]
[356265673,1742163039980,-452126.88400442,0.00030463,30]
[356265674,1742163039991,-1000.0,0.00030463,30]
[356265675,1742163040000,-1604.35,0.00030463,30]
[356265676,1742163040009,-10000.0,0.00030463,30]
[356265677,1742163040019,-21958.58357189,0.00030463,30]
[356265678,1742163040030,-390.42511755,0.00030463,120]
[356265679,1742163040040,-1335.33,0.00030468,2]
[356265680,1742163040050,-163.71764469,0.00030473,5]
[356265681,1742163040061,-500.0,0.00030473,5]
[356265682,1742163040070,-156.73,0.00030517,2]
[356265683,1742163040081,-1335.33,0.00030545,2]
[356265684,1742163040090,-156.73,0.00030621,2]
[356265685,1742163040100,-1335.33,0.00030622,2]
[356265686,1742163040110,-200.0,0.00030703,2]
[356265687,1742163040120,-232.0,0.000308,2]
[356265688,1742163040131,-368.0,0.000308,2]
[356265689,1742163040141,-750.0,0.000308,2]
[356265690,1742163040151,-224.09259822,0.00031038,5]
[356265691,1742163040160,-166.66,0.00031051,2]
[356265692,1742163040170,-236.0,0.000311,2]
[356265693,1742163040181,-812.1,0.00031352,2]
[356265694,1742163040191,-13373.72241605,0.00031645,2]
[356265695,1742163040200,-481.79319915,0.00031645,2]
[356265696,1742163040210,-150.0,0.00031768,2]
[356265697,1742163040220,-224.09259822,0.00031866,6]
[356265698,1742163040229,-772.76,0.00031911,2]
[356265700,1742163040239,-166.66,0.00032012,2]
[356265702,1742163040249,-236.0,0.0003215,2]
[356265704,1742163040260,-164.28489184,0.00032154,2]
[356265706,1742163040270,-440.59,0.00032336,2]
[356265708,1742163040280,-60418.0337694,0.000325,30]
[356265710,1742163040289,-1149.05,0.00032667,2]
[356265712,1742163040299,-442.2,0.00032667,2]
[356265713,1742163040308,-224.09259822,0.00032693,6]
[356265715,1742163040318,-1000.0,0.00032721,2]
[356265717,1742163040326,-1436.0,0.00032864,5]
[356265719,1742163040336,-13373.72241605,0.00032927,2]
[356265722,1742163040347,-481.79319915,0.00032927,2]
[356265724,1742163040357,-166.66,0.00032974,2]
[356265725,1742163040367,-150.0,0.00033138,2]
[356265727,1742163040376,-236.0,0.0003321,2]
[356265729,1742163040386,-359.88,0.00033215,2]
[356265731,1742163040396,-500.14382252,0.00033453,5]
[356265733,1742163040406,-500.0,0.00033492,5]
[356265735,1742163040416,-224.09259822,0.00033521,6]
[356265737,1742163040425,-150.0,0.00033904,2]
[356265739,1742163040435,-166.66,0.00033935,2]
[356265741,1742163040444,-164.28489184,0.00033945,2]
[356265743,1742163040454,-154.0,0.00034,120]
[356265745,1742163040463,-772.76,0.00034175,2]
[356265747,1742163040472,-152.05,0.00034199,2]
[356265749,1742163040482,-13373.72241605,0.00034209,2]
[356265751,1742163040491,-481.79319915,0.00034209,2]
[356265753,1742163040501,-236.0,0.0003426,2]
[356265755,1742163040511,-224.09259822,0.00034348,6]
[356265757,1742163040520,-150.0,0.00034507,2]
[356265759,1742163040530,-150.0,0.00034548,10]
[356265761,1742163040540,-166.66,0.00034555,2]
[356265763,1742163040549,-157.83,0.000348,31]
[356265766,1742163040559,-151.3,0.00034859,2]
[356265767,1742163040568,-222.0,0.000349,2]
[356265769,1742163040578,-8521.49,0.00035,120]
[356265772,1742163040588,-9969.43657269,0.00035,2]